Cogmind - Beta 16.1 @@@ ROGUE MODE // 2026.03.20 @ 17:39:23 Player: star Result: Destroyed by G-50 Soldier with Heavy Laser Performance ------------- Evolutions (4) 2000 Regions Visited (11) 2200 Robots Destroyed (105) 525 Value Destroyed (4972) 4972 Prototype IDs (26) 520 Alien Tech Used (0) 0 Bonus (3731) 3731 TOTAL SCORE: 13948 Bonus ------- High Alert Combat Kills 424 Follower Combat Kills 907 Entered Garrisons 600 Used RIF Installer 1500 Aligned with FarCom 300 Cogmind --------- Core Integrity 0/850 Matter 300/300 Energy 100/100 System Corruption 5% Temperature Cool (12) Movement Core (50) Location -6/Garrison Parts ------- > --- POWER (2) -------- (None) > --- PROPULSION (4) --- (None) > --- UTILITY (7) ------ Advanced Salvage Targeting Computer Relay Coupler [Swarmer] (1) Relay Coupler [Grunt] (28) Relay Coupler [Grunt] (23) Relay Coupler [Grunt] (25) > --- WEAPON (2) ------- (None) > --- INVENTORY (5) ---- Micro Nuclear Core Launcher Loader Proton Missile Launcher Remote Datajack Peak State ------------ > --- POWER ------------ Reinforced Fission Core Light Antimatter Reactor > --- PROPULSION ------- Flexi-carbon Leg Flexi-carbon Leg Flexi-carbon Leg Flexi-carbon Leg > --- UTILITY ---------- Medium Storage Unit Target Analyzer Relay Coupler [Duelist] Relay Coupler [Sentry] Relay Coupler [Sentry] Relay Coupler [Sentry] Relay Coupler [Behemoth] > --- WEAPON ----------- Remote Datajack Longsword +1 > --- INVENTORY -------- Light Fission Core Flexi-carbon Leg Flexi-carbon Leg Launcher Loader Reflective Plating Relay Coupler [Sentry] Gauss Cannon Gauss Cannon Heavy Pick [Rating: 74] Favorites ----------- Power Light Angular Momentum Engine Engine Light Angular Momentum Engine Power Core Reinforced Fission Core Reactor Light Antimatter Reactor Propulsion Aluminum Leg Treads Improved Heavy Treads Leg Aluminum Leg Hover Unit Gravmag System Flight Unit VTOL Module Utility Medium Storage Unit Device Improved Heat Sink Storage Medium Storage Unit Processor Target Analyzer Hackware Relay Coupler [Sentry] Protection Light Armor Plating Weapon Longsword +1 Energy Gun Beam Rifle Ballistic Gun Light Assault Rifle Ballistic Cannon Gauss Cannon Launcher Grenade Launcher Special Weapon Remote Datajack Slashing Weapon Longsword +1 Piercing Weapon Heavy Pick Special Melee Weapon Datajack Build | -11 -10 -10 -10 -9 -8 -8 -7 -6 -6 -6 -6 ------- Run | Yrd Mat Min Exi Min Mat Gar Fac Fac Gar Fac Gar Slots Evolved 8 | . . . . . 4 . 2 2 . . . Power 1 | . . . . . . . . 1 . . . Propulsion 2 | . . . . . 1 . 1 . . . . Utility 5 | . . . . . 3 . 1 1 . . . Weapon . | . . . . . . . . . . . . Parts Attached 138 | 6 12 3 . . 16 34 7 15 21 4 20 Power 20 | 1 1 1 . . 2 2 . 4 4 1 4 Engine 8 | 1 1 1 . . 1 1 . 3 . . . Core 11 | . . . . . 1 1 . 1 3 1 4 Reactor 1 | . . . . . . . . . 1 . . Propulsion 36 | 2 2 . . . 5 8 2 5 8 2 2 Treads 1 | . . . . . . . . . 1 . . Leg 32 | 2 2 . . . 5 8 2 3 7 2 1 Wheel . | . . . . . . . . . . . . Hover 2 | . . . . . . . . 2 . . . Flight 1 | . . . . . . . . . . . 1 Utility 49 | 1 2 . . . 5 16 3 5 7 1 9 Device 9 | . 1 . . . 1 2 1 3 1 . . Storage 2 | 1 1 . . . . . . . . . . Processor 7 | . . . . . 1 2 1 1 1 1 . Hackware 24 | . . . . . . 10 1 . 5 . 8 Protection 7 | . . . . . 3 2 . 1 . . 1 Artifact . | . . . . . . . . . . . . Weapon 33 | 2 7 2 . . 4 8 2 1 2 . 5 Energy Gun 14 | . 6 2 . . 1 3 . . . . 2 Energy Cannon . | . . . . . . . . . . . . Ballistic Gun 2 | 2 . . . . . . . . . . . Ballistic Cannon 4 | . . . . . . 3 1 . . . . Launcher 7 | . 1 . . . 2 . 1 . 2 . 1 Special Weapon 2 | . . . . . . 1 . . . . 1 Impact Weapon . | . . . . . . . . . . . . Slashing Weapon 1 | . . . . . 1 . . . . . . Piercing Weapon 1 | . . . . . . . . 1 . . . Special Melee Weapon 2 | . . . . . . 1 . . . . 1 Unidentified Prototypes 3 | . . . . . 1 . 1 1 . . . Corrupted Parts 3 | . . . . . . 3 . . . . . System Corruption 15 | . . . . . . 15 . . . . . Parts Lost 60 | . 4 . . . 8 11 9 . 7 . 21 Power 13 | . 1 . . . 1 2 1 . 3 . 5 Propulsion 23 | . 1 . . . 2 4 4 . 4 . 8 Utility 12 | . . . . . 4 2 2 . . . 4 Weapon 12 | . 2 . . . 1 3 2 . . . 4 Highest Loss Streak 9 | . 4 . . . 7 3 9 . 3 . 5 To Critical Strikes . | . . . . . . . . . . . . Average Backups 8 | . 6 8 9 10 9 8 9 8 8 9 5 Power . | . 1 1 1 1 . . . . . 1 . Propulsion . | . . 1 1 1 1 . . . 1 2 1 Utility 2 | . . 1 2 2 1 2 4 5 3 3 2 Weapon 3 | . 4 4 4 5 5 5 3 2 2 2 1 Tool/Special . | . . . . . . . . . . . . Unused Backups 10 | . 1 . . . . 1 . 1 2 . 5 Power . | . . . . . . . . . . . . Propulsion . | . . . . . . . . . . . . Utility 8 | . . . . . . 1 . 1 2 . 4 Weapon 1 | . 1 . . . . . . . . . . Tool/Special 1 | . . . . . . . . . . . 1 Average Slot Usage (%) 87 | . 87 100 100 100 87 84 92 68 92 91 79 Engine 5 | . 11 14 14 14 8 1 6 5 2 . . Core 3 | . . . . . . 4 . . 4 9 5 Leg 22 | . 24 28 28 28 26 20 26 10 22 26 19 Device 4 | . 11 14 14 14 7 1 . 6 1 . . Storage 8 | . 14 14 14 14 9 8 6 6 6 6 2 Processor 7 | . . . . . 4 11 13 7 6 13 7 Hackware 15 | . . . . . . 14 22 13 29 21 28 Protection 1 | . . . . . 12 2 . . . . 1 Energy Gun 7 | . 18 28 28 21 14 6 . . . . 1 Ballistic Cannon 2 | . . . . . . 5 11 . . . . Special Weapon 1 | . . . . . . . 1 3 3 5 2 Slashing Weapon 2 | . . . . . 1 . 1 6 5 6 4 Special Melee Weapon 1 | . . . . . . 5 . . . . 2 Peak Build Rating 74 | 6 12 13 14 14 27 37 47 66 74 70 71 Average Rating 38 | 4 9 12 13 13 23 23 42 49 65 68 54 On Entrance 28 | . 6 12 13 14 13 26 37 16 65 69 70 Avg Prop Armor Cover (%) 12 | . . . . . . 7 12 6 19 . 14 Naked Turns . | . . . . . . . . . . . . Heaviest Build 53 | 11 20 24 24 24 29 33 41 53 53 44 48 Greatest Support 80 | 20 20 20 20 20 36 40 60 65 80 80 75 Greatest Overweight (x) 9 | . 1 1 1 1 1 9 3 4 7 . . Average Overweight (x) . | . . . 1 1 . . . 1 . . . Largest Inventory Capacity 10 | 8 10 10 10 10 10 10 10 10 10 10 10 Average Capacity 9 | 6 8 10 10 10 10 9 9 10 10 10 6 Most Carried 10 | 2 9 10 10 10 10 10 10 10 10 10 10 Average Carried 8 | . 6 8 9 10 9 8 9 9 9 9 6 Final Capacity 10 | 8 10 10 10 10 10 10 10 10 10 10 5 Final Carried 10 | 2 8 9 10 10 10 10 9 10 10 10 5 Class Distribution -------------------- 45% | Bothacker-Mutant 25% | Scavenger-Mutant 18% | Commander-Mutant 8% | Mutant Dominant Class ---------------- Mutant | -10/Materials Scavenger-Mutant | -10/Mines Scavenger-Mutant | -10/Exiles Scavenger-Mutant | -9/Mines Scavenger-Mutant | -8/Materials Commander-Mutant | -8/Garrison Bothacker-Mutant | -7/Factory Bothacker-Mutant | -6/Factory Bothacker-Mutant | -6/Garrison Commander-Mutant | -6/Factory Bothacker-Mutant | -6/Garrison Resources | -11 -10 -10 -10 -9 -8 -8 -7 -6 -6 -6 -6 ----------- Run | Yrd Mat Min Exi Min Mat Gar Fac Fac Gar Fac Gar Matter Collected 3036 | 225 227 30 . . 318 771 448 170 437 76 334 Remotely . | . . . . . . . . . . . . Salvage Created 3633 | . 434 94 . . 702 432 455 191 789 172 364 Parts 232 | . 34 8 . . 52 23 22 12 37 17 27 Haulers Intercepted 7 | . 2 . . . 3 . 2 . . . . Recyclers Shooed 2 | . 1 . . . . . 1 . . . . Parts Field Recycled . | . . . . . . . . . . . . Retrieved Matter . | . . . . . . . . . . . . Parts Self-Destructed . | . . . . . . . . . . . . Prevented . | . . . . . . . . . . . . Parts Restored . | . . . . . . . . . . . . Kills | -11 -10 -10 -10 -9 -8 -8 -7 -6 -6 -6 -6 ------- Run | Yrd Mat Min Exi Min Mat Gar Fac Fac Gar Fac Gar Combat Hostiles Destroyed 81 | . 12 4 . . 23 13 7 3 11 1 7 Melee 21 | . . . . . 3 . . 3 10 1 4 Guns 18 | . 7 4 . . 4 3 . . . . . Cannons 10 | . . . . . . 4 6 . . . . AOE 30 | . 5 . . . 16 4 1 . 1 . 3 Classes Destroyed 14 | . 5 1 . . 2 2 2 . 1 . 1 Worker 3 | . 2 . . . . . 1 . . . . Builder 4 | . . . . . 3 . . 1 . . . Hauler 7 | . 2 . . . 3 . 2 . . . . Recycler 1 | . . . . . . . 1 . . . . Mechanic 2 | . . . . . . . 1 . . 1 . Operator 5 | . 2 . . . . . . 1 . 2 . Watcher 1 | . . . . . 1 . . . . . . Swarmer 33 | . 6 3 . . 18 3 . . . . 3 Cutter 4 | . . . . . . 1 . . 3 . . Grunt 26 | . 6 . . . 3 3 5 2 5 . 2 Brawler 1 | . . . . . . . . . . . 1 Sentry 7 | . . 1 . . 2 3 . . . 1 . Hunter 2 | . . . . . . . . . 2 . . Programmer 9 | . . . . . . 3 2 1 1 . 2 Best Kill Streak 10 | . 6 2 . . 10 5 4 2 2 2 3 Combat Bots Only 8 | . 5 2 . . 8 5 2 2 2 1 3 Max Kills in Single Turn 4 | . 4 1 . . 4 2 1 1 1 1 4 Gunslinging . | . . . . . . . . . . . . Exploded 4 | . 3 . . . 4 2 1 . 1 . 3 Melee 1 | . . . . . 1 . . 1 1 1 1 Uniques/NPCs Destroyed . | . . . . . . . . . . . . Combat | -11 -10 -10 -10 -9 -8 -8 -7 -6 -6 -6 -6 -------- Run | Yrd Mat Min Exi Min Mat Gar Fac Fac Gar Fac Gar Hostile Shots Fired 774 | . 49 17 . . 115 124 162 9 146 18 134 Missed 266 | . 18 6 . . 40 38 62 2 54 7 39 Hits 508 | . 31 11 . . 75 86 100 7 92 11 95 Melee 18 | . . . . . . 9 . . 9 . . Projectile 490 | . 31 11 . . 75 77 100 7 83 11 95 AOE 2 | . . . . . . 1 . . 1 . . Critical Strikes 15 | . . . . . . 6 5 . 2 . 2 Part Disruptions 1 | . . . . . . 1 . . . . . Damage Taken 7680 | . 516 95 . . 967 1309 1361 118 1466 93 1755 Core 1734 | . 97 13 . . 130 202 431 36 343 6 476 Absorbed by Shields 32 | . . . . . . . . . . . 32 Redirected to Shielding 54 | . . . . . 54 . . . . . . Ignored by Resistances 16 | . . . . . . . . . . . 16 Regen/Repaired (Parts) 277 | . . . . . . . 210 . . 67 . Core Remaining (%) 58 | 100 . . . 56 . 39 38 . . . . Volleys Fired 202 | . 25 5 . . 42 69 24 . 15 4 18 Largest 2 | . 2 2 . . 2 2 2 . 1 1 1 Hottest 130 | . 130 130 . . 112 121 80 . 5 5 65 Shots Fired 291 | . 45 10 . . 70 96 33 . 15 4 18 Gun 154 | . 40 10 . . 57 43 . . . . 4 Cannon 59 | . . . . . . 38 21 . . . . Launcher 40 | . 5 . . . 13 15 4 . 2 . 1 Special 38 | . . . . . . . 8 . 13 4 13 Kinetic 65 | . 6 . . . . 38 21 . . . . Thermal 121 | . 20 10 . . 57 34 . . . . . Explosive 15 | . 5 . . . 8 . . . 2 . . Electromagnetic 52 | . 14 . . . 5 24 4 . . . 5 Robot Hit Streak 11 | . 8 7 . . 10 11 6 . 2 3 4 Robot Miss Streak 4 | . 4 2 . . 3 4 3 . 2 1 1 Penetration Max 1 | . . . . . . 1 1 . . . . Secondary Targets 2 | . . . . . 2 . . . . . . Max Gunslinging Chain 1 | . . . . . 1 . . . . . . Shots Hit Robots 265 | . 24 7 . . 56 59 21 10 54 9 25 Core Hits 134 | . 21 5 . . 34 17 16 5 23 3 10 Critical Kills . | . . . . . . . . . . . . Critical Parts Destroyed . | . . . . . . . . . . . . Critical Strikes 18 | . 1 . . . 4 2 3 1 7 . . Burn 6 | . 1 . . . 3 2 . . . . . Blast 3 | . . . . . . . 3 . . . . Sever 8 | . . . . . 1 . . 1 6 . . Impale 1 | . . . . . . . . . 1 . . Melee Attacks 165 | . . . . . 8 33 2 12 70 19 21 Impact . | . . . . . . . . . . . . Slashing 129 | . . . . . 8 6 2 12 64 19 18 Piercing 6 | . . . . . . . . . 6 . . Sneak Attacks 14 | . . . . . 1 6 . 2 . 2 3 Combat Hostiles 3 | . . . . . . . . . . . 3 Follow-up Attacks 3 | . . . . . . . . . 3 . . Damage Inflicted 9494 | . 725 103 . . 2025 1404 906 502 2650 394 785 Guns 1345 | . 308 103 . . 635 259 . . . . 40 Cannons 1098 | . . . . . . 627 457 . 14 . . Explosions 2701 | . 417 . . . 976 518 431 . 126 . 233 Melee 4332 | . . . . . 414 . . 502 2510 394 512 Ramming 18 | . . . . . . . 18 . . . . Kinetic 1133 | . 49 . . . . 627 457 . . . . Thermal 1506 | . 165 103 . . 705 352 . . . . 181 Explosive 1165 | . 393 . . . 646 . . . 126 . . Electromagnetic 1326 | . 118 . . . 260 425 431 . . . 92 Impact 14 | . . . . . . . . . 14 . . Slashing 4179 | . . . . . 414 . . 502 2357 394 512 Piercing 153 | . . . . . . . . . 153 . . Highest Corruption 24 | . . . . . . 24 . 1 2 2 5 Average Corruption 5 | . . . . . . 11 . 1 1 2 2 Corruption Purged . | . . . . . . . . . . . . Corruption Blocked . | . . . . . . . . . . . . Effects 107 | . . . . . . 64 . 2 15 11 15 Message Errors 20 | . . . . . . 14 . . 2 3 1 Matter Fused 25 | . . . . . . 12 . . 6 2 5 Heat Flow Errors 16 | . . . . . . 8 . 2 2 1 3 Energy Discharges 15 | . . . . . . 8 . . 2 4 1 Parts Rejected 2 | . . . . . . 1 . . 1 . . Parts Fused 3 | . . . . . . . . . 1 . 2 Data Loss (minor) 17 | . . . . . . 15 . . . 1 1 Data Loss (major) 1 | . . . . . . . . . . . 1 Misfires 2 | . . . . . . 2 . . . . . Alerts 2 | . . . . . . . . . 1 . 1 Weapon Failures 4 | . . . . . . 4 . . . . . Overload Shots . | . . . . . . . . . . . . Overflow Damage 477 | . 84 . . . 59 16 7 81 131 58 41 Projectiles 23 | . . . . . . 16 7 . . . . Explosions 111 | . 84 . . . 12 . . . . . 15 Melee 343 | . . . . . 47 . . 81 131 58 26 Knockbacks 11 | . . . . . . 8 3 . . . . Impact . | . . . . . . . . . . . . Kinetic 9 | . . . . . . 6 3 . . . . Secondary 2 | . . . . . . 2 . . . . . Self-Inflicted Damage 349 | . 212 . . . 25 29 28 . . . 55 Shots 13 | . 3 . . . 2 3 3 . . . 2 Rammed 1 | . . . . . . . 1 . . . . Targets Rammed 5 | . . . . . . . 5 . . . . Kicked 4 | . . . . . . . 4 . . . . Crushed . | . . . . . . . . . . . . Highest Temperature 425 | . 99 54 . . 425 249 21 266 246 188 173 Average Temperature 75 | . 39 22 . . 133 48 8 118 83 105 57 Received Heat Transfer 2154 | . 72 9 . . 396 360 729 27 312 18 231 Effects 5 | . . . . . 4 . . 1 . . . Shutdowns 2 | . . . . . 2 . . . . . . Energy Bleed 1 | . . . . . . . . 1 . . . Interference 1 | . . . . . 1 . . . . . . Matter Decay 1 | . . . . . 1 . . . . . . Siege Activations . | . . . . . . . . . . . . Martial Activations . | . . . . . . . . . . . . Shielding Activations . | . . . . . . . . . . . . Robots Disrupted . | . . . . . . . . . . . . Combat Hostiles . | . . . . . . . . . . . . Robots Corrupted 1 | . . . . . . 1 . . . . . Combat Hostiles 1 | . . . . . . 1 . . . . . Parts Fried 3 | . . . . . . 3 . . . . . Impact Corruptions 1 | . . . . . . 1 . . . . . Robots Melted 2 | . . . . . 1 1 . . . . . Combat Hostiles 1 | . . . . . . 1 . . . . . Parts Melted 10 | . 2 1 . . 4 3 . . . . . Heat Transferred 3566 | . 457 259 . . 1900 800 . . . . 150 Parts Sabotaged . | . . . . . . . . . . . . Parts Stolen . | . . . . . . . . . . . . Parts Stripped . | . . . . . . . . . . . . Power Chain Reactions 8 | . 1 . . . 2 4 . . . . 1 Alert | -11 -10 -10 -10 -9 -8 -8 -7 -6 -6 -6 -6 ------- Run | Yrd Mat Min Exi Min Mat Gar Fac Fac Gar Fac Gar Maximum Alert Level 4 | . 1 . . . 2 4 3 1 3 2 3 Low Security (%) 30 | 100 95 100 . 100 29 . . 77 19 . . Level 1 11 | . 4 . . . 54 14 . 22 18 . . Level 2 34 | . . . . . 15 40 99 . 33 100 11 Level 3 22 | . . . . . . 38 . . 27 . 88 Level 4 1 | . . . . . . 6 . . . . . Level 5 . | . . . . . . . . . . . . High Security . | . . . . . . . . . . . . Max Security . | . . . . . . . . . . . . Peak Influence 1274 | . 204 81 . . 440 1274 700 296 888 678 840 Initial 668 | . . 76 . . . 279 668 296 4 466 455 Average 454 | . 96 16 . . 236 705 596 123 486 586 764 Influence Increases 5459 | . 486 105 . . 700 1205 584 91 1052 613 623 Destroy 0b10 Robot/C 2240 | . 240 80 . . 460 440 220 60 340 180 220 Destroy 0b10 Robot/NC 155 | . 30 . . . 35 . 45 10 15 20 . Destroy Leader 324 | . 54 10 . . 88 10 32 20 20 70 20 Allied During Kill 488 | . . . . . . 148 105 . 27 130 78 Successful Hack 40 | . . . . . . 14 . . . 26 . Disable Machine 165 | . 60 . . . 30 . 45 . . 30 . Anti-Garrison Action 900 | . . . . . . 500 . . 250 . 150 Destroy Structure 577 | . 72 . . . 42 78 32 1 130 157 65 Partial Spotted 15 | . . . . . . . . . . . 15 Lose Combat Pursuer 555 | . 30 15 . . 45 15 105 . 270 . 75 Influence Decreases 4691 | . 290 301 . . 270 361 1252 690 171 850 506 Entered New Map 1808 | . . 120 . . . 151 606 310 3 422 196 Time Decay 1785 | . 250 181 . . 190 . 416 380 . 368 . Lost Part 598 | . 40 . . . 80 110 90 . 68 . 210 Lost Ally 500 | . . . . . . 100 140 . 100 60 100 Squads Dispatched 15 | . 2 . . . 2 . 6 2 . 3 . Investigation . | . . . . . . . . . . . . Extermination 3 | . . . . . . . 1 1 . 1 . Reinforcement 8 | . 2 . . . 1 . 2 1 . 2 . Assault 2 | . . . . . . . 2 . . . . Garrison 2 | . . . . . 1 . 1 . . . . Intercept . | . . . . . . . . . . . . Searches Triggered . | . . . . . . . . . . . . Construction Impeded 3 | . . . . . 1 . 2 . . . . Haulers Reinforced . | . . . . . . . . . . . . Active Scanning Responses . | . . . . . . . . . . . . Cargo Convoy Interrupts . | . . . . . . . . . . . . Stealth | -11 -10 -10 -10 -9 -8 -8 -7 -6 -6 -6 -6 --------- Run | Yrd Mat Min Exi Min Mat Gar Fac Fac Gar Fac Gar Distress Signals 12 | . 4 . . . 2 1 3 . . 2 . Communications Jammed . | . . . . . . . . . . . . Distress Signals . | . . . . . . . . . . . . Times Spotted 219 | . 19 8 . . 33 43 37 5 34 8 32 Peak Tracking Total 8 | . 4 3 . . 6 5 8 2 7 3 5 Tactical Retreats 20 | . 1 1 . . 3 1 2 . 10 . 2 Traps | -11 -10 -10 -10 -9 -8 -8 -7 -6 -6 -6 -6 ------- Run | Yrd Mat Min Exi Min Mat Gar Fac Fac Gar Fac Gar Traps Triggered 11 | . . . . . . . 1 . 3 . 7 Indirectly . | . . . . . . . . . . . . Trap Hack Attempts 5 | . . . . . . 5 . . . . . Triggered . | . . . . . . . . . . . . Disarmed 1 | . . . . . . 1 . . . . . Reprogrammed . | . . . . . . . . . . . . Reused . | . . . . . . . . . . . . Traps Extracted . | . . . . . . . . . . . . Installed . | . . . . . . . . . . . . Triggered . | . . . . . . . . . . . . Machines | -11 -10 -10 -10 -9 -8 -8 -7 -6 -6 -6 -6 ---------- Run | Yrd Mat Min Exi Min Mat Gar Fac Fac Gar Fac Gar Machines Disabled 22 | . 4 . . . 2 5 3 . 3 2 3 Max in Single Turn 2 | . 2 . . . 1 1 1 . 1 1 1 Garrison Access 1 | . . . . . . . 1 . . . . Garrison Relay 10 | . . . . . . 4 . . 3 . 3 Machines Repaired . | . . . . . . . . . . . . Machines Dismantled . | . . . . . . . . . . . . Machines Sabotaged . | . . . . . . . . . . . . Overloaded Fab Kills . | . . . . . . . . . . . . Hacking | -11 -10 -10 -10 -9 -8 -8 -7 -6 -6 -6 -6 --------- Run | Yrd Mat Min Exi Min Mat Gar Fac Fac Gar Fac Gar Machines Accessed 8 | . . . 1 1 1 1 1 1 . 2 . Terminals 2 | . . . . 1 . 1 . . . . . Fabricators . | . . . . . . . . . . . . Repair Stations 2 | . . . . . . . 1 . . 1 . Recycling Units . | . . . . . . . . . . . . Scanalyzers . | . . . . . . . . . . . . Garrison Access 3 | . . . . . 1 . . 1 . 1 . Total Hacks 14 | . . . 1 1 4 1 2 1 . 4 . Successful 11 | . . . 1 1 1 1 2 1 . 4 . Failed 3 | . . . . . 3 . . . . . . Catastrophic . | . . . . . . . . . . . . Database Lockouts . | . . . . . . . . . . . . Manual 1 | . . . 1 . . . . . . . . Terminals 2 | . . . . 1 . 1 . . . . . Fabricators . | . . . . . . . . . . . . Repair Stations 4 | . . . . . . . 2 . . 2 . Recycling Units . | . . . . . . . . . . . . Scanalyzers . | . . . . . . . . . . . . Garrison Access 7 | . . . . . 4 . . 1 . 2 . Terminal Hacks 3 | . . . 1 1 . 1 . . . . . Level Access Points 1 | . . . . 1 . . . . . . . Garrison Registry 1 | . . . . . . 1 . . . . . Proto ID Catalog 1 | . . . 1 . . . . . . . . Fabricator Hacks . | . . . . . . . . . . . . Repair Station Hacks 4 | . . . . . . . 2 . . 2 . Scan Component 2 | . . . . . . . 1 . . 1 . Repair 2 | . . . . . . . 1 . . 1 . Recycling Unit Hacks . | . . . . . . . . . . . . Scanalyzer . | . . . . . . . . . . . . Garrison Access Hacks 4 | . . . . . 1 . . 1 . 2 . Unlock Access 3 | . . . . . 1 . . 1 . 1 . Coupler Status 1 | . . . . . . . . . . 1 . Unauthorized Hacks . | . . . . . . . . . . . . Terminals . | . . . . . . . . . . . . Fabricators . | . . . . . . . . . . . . Repair Stations . | . . . . . . . . . . . . Recycling Units . | . . . . . . . . . . . . Scanalyzers . | . . . . . . . . . . . . Garrison Access . | . . . . . . . . . . . . Data Cores Recovered . | . . . . . . . . . . . . Used . | . . . . . . . . . . . . Hacking Detections 1 | . . . . 1 . . . . . . . Full Trace Events . | . . . . . . . . . . . . Feedback Events . | . . . . . . . . . . . . Feedback Blocked . | . . . . . . . . . . . . Robot Schematics Acquired . | . . . . . . . . . . . . Robots Built . | . . . . . . . . . . . . Authchips . | . . . . . . . . . . . . Time . | . . . . . . . . . . . . Total Robot Build Rating . | . . . . . . . . . . . . Part Schematics Acquired . | . . . . . . . . . . . . Parts Built . | . . . . . . . . . . . . Authchips . | . . . . . . . . . . . . Time . | . . . . . . . . . . . . Total Part Build Rating . | . . . . . . . . . . . . Part Studies Acquired . | . . . . . . . . . . . . Parts Repaired 2 | . . . . . . . 1 . . 1 . Time 48 | . . . . . . . 26 . . 22 . Parts Recycled . | . . . . . . . . . . . . Recycled Matter . | . . . . . . . . . . . . Retrieved Matter . | . . . . . . . . . . . . Retrieved Components . | . . . . . . . . . . . . Parts Scanalyzed . | . . . . . . . . . . . . Part Schematics Acquired . | . . . . . . . . . . . . Parts Damaged . | . . . . . . . . . . . . Bothacking | -11 -10 -10 -10 -9 -8 -8 -7 -6 -6 -6 -6 ------------ Run | Yrd Mat Min Exi Min Mat Gar Fac Fac Gar Fac Gar Used RIF Installer 3 | . . . . . . 2 . . 1 . . Command Fork 1 | . . . . . . 1 . . . . . Watcher Feeds 1 | . . . . . . . . . 1 . . Robots Hacked 37 | . . . . . . 13 5 . 8 3 8 Non-combat 1 | . . . . . . . . . . 1 . Combat 36 | . . . . . . 13 5 . 8 2 8 Robot Hacks Applied 39 | . . . . . . 13 7 . 8 3 8 parse_system 1 | . . . . . . . . . . . 1 check_alert 1 | . . . . . . . . . . 1 . find_shortcuts 1 | . . . . . . 1 . . . . . scatter_targeting 2 | . . . . . . . 1 . 1 . . overload_power 1 | . . . . . . . 1 . . . . amplify_resonance 6 | . . . . . . . 2 . . . 4 go_dormant 1 | . . . . . . 1 . . . . . overwrite_iff 1 | . . . . . . . . . . . 1 streamctrl_high 1 | . . . . . . . . . 1 . . formatsys_high 24 | . . . . . . 11 3 . 6 2 2 Relay Couplers Released 41 | . . . . . . 16 3 . 10 . 12 Machine Destruction 41 | . . . . . . 16 3 . 10 . 12 Attached 24 | . . . . . . 10 1 . 5 . 8 Fabnet Peak Effective % . | . . . . . . . . . . . . Robots Rewired 7 | . . . . . . 1 . . 6 . . Allies Hacked . | . . . . . . . . . . . . Hacks Repelled . | . . . . . . . . . . . . Allies | -11 -10 -10 -10 -9 -8 -8 -7 -6 -6 -6 -6 -------- Run | Yrd Mat Min Exi Min Mat Gar Fac Fac Gar Fac Gar Total Allies 48 | . . . . . . 15 15 . 13 2 3 Largest Group 15 | . . . . . . 14 15 . 8 9 7 Highest-Rated Group 462 | . . . . . . 266 323 . 430 462 410 Highest-Rated Ally 148 | . . . . . . 34 34 . 148 148 148 Total Orders . | . . . . . . . . . . . . Ally Attacks 207 | . . . . . . 68 45 . 33 30 31 Total Damage 4981 | . . . . . . 877 1139 . 1034 842 1089 Kills 39 | . . . . . . 10 10 . 6 9 4 Allies Corrupted 2 | . . . . . . . . . 1 . 1 Allies Melted 1 | . . . . . . . . . 1 . . Intel | -11 -10 -10 -10 -9 -8 -8 -7 -6 -6 -6 -6 ------- Run | Yrd Mat Min Exi Min Mat Gar Fac Fac Gar Fac Gar Active Infowar (turns) 1691 | . . . . . . 1691 . . . . . Optics 1691 | . . . . . . 1691 . . . . . Robot Analysis Total . | . . . . . . . . . . . . Derelict Logs Recovered 4 | . . 2 . 2 . . . . . . . Drone Launches . | . . . . . . . . . . . . Drone Recoveries . | . . . . . . . . . . . . Exploration | -11 -10 -10 -10 -9 -8 -8 -7 -6 -6 -6 -6 ------------- Run | Yrd Mat Min Exi Min Mat Gar Fac Fac Gar Fac Gar Turns Passed 10360 | 69 584 817 425 409 490 2161 1015 893 1564 849 1084 Spaces Moved 5999 | 51 324 386 224 198 284 1247 649 422 899 488 827 Core 73 | 4 . . . . . 1 6 . 1 . 61 Treads 1 | . . . . . . . . . 1 . . Legs 5898 | 47 324 386 224 198 284 1246 643 419 897 488 742 Wheels . | . . . . . . . . . . . . Hover 3 | . . . . . . . . 3 . . . Flight 24 | . . . . . . . . . . . 24 Fastest Speed 35 | 50 120 120 190 190 90 100 120 120 120 112 35 Average Speed 134 | 114 131 161 190 190 91 136 122 195 122 112 108 Slowest Speed 500 | 120 190 190 190 190 190 500 200 310 400 120 120 Overloaded Moves . | . . . . . . . . . . . . Propulsion Burnouts . | . . . . . . . . . . . . Robots Hopped . | . . . . . . . . . . . . Potential Cave-ins . | . . . . . . . . . . . . Cave-ins Triggered . | . . . . . . . . . . . . Exploration Rate (%) 44 | 3 60 83 61 55 29 82 17 8 74 12 44 Regions Visited 11 Branch Regions 3 Pre-discovered Areas 2 | . . 1 . 1 . . . . . . . Known Exits Taken 4 | . . . . 1 1 . . 1 . 1 . Unknown Exits Taken 5 | 1 1 1 1 . . . 1 . . . . Scrap Searched 3 | . . 1 . 2 . . . . . . . Spaces Dug 21 | . . . . . . 5 2 2 5 5 2 Terrain Destroyed 171 | . 83 . . . 47 15 7 2 5 5 7 Melee 21 | . . . . . . 5 2 2 5 5 2 Projectile 5 | . . . . . . . 5 . . . . AOE 145 | . 83 . . . 47 10 . . . . 5 Terrain Rammed . | . . . . . . . . . . . . Walls Destroyed . | . . . . . . . . . . . . Machines Disabled . | . . . . . . . . . . . . Actions | -11 -10 -10 -10 -9 -8 -8 -7 -6 -6 -6 -6 --------- Run | Yrd Mat Min Exi Min Mat Gar Fac Fac Gar Fac Gar Total 7844 | 58 431 571 224 231 432 1575 829 475 1279 766 973 Wait 1064 | . 58 171 . 33 63 115 120 10 185 244 65 Move 5989 | 50 323 385 223 197 284 1246 648 421 898 487 827 Hop . | . . . . . . . . . . . . Pick Up 67 | 2 8 3 1 . 6 24 7 4 6 2 4 Fast Attach 72 | 6 3 . . . 6 14 4 8 16 2 13 Attach 26 | . 2 . . . 4 10 2 4 2 . 2 Detach 3 | . . . . . . . . 2 . . 1 Swap 107 | . 10 3 . 1 12 30 14 8 15 3 11 Drop 57 | . 2 4 . . 7 15 3 6 13 4 3 Fire 202 | . 25 5 . . 42 69 24 . 15 4 18 Melee 161 | . . . . . 8 33 2 12 66 19 21 Ram 1 | . . . . . . . 1 . . . . Kick 4 | . . . . . . . 4 . . . . Crush . | . . . . . . . . . . . . Escape Stasis 11 | . . . . . . . . . 4 . 7 Rewire 75 | . . . . . . 14 . . 59 1 1 Trap 5 | . . . . . . 5 . . . . . Miscellaneous . | . . . . . . . . . . . . Route ------- -11/Scrapyard -10/Materials -10/Mines -10/Exiles -9/Mines (discovered 2 exits: *Mat x2) -8/Materials (discovered 3 exits: Fac x2 / Gar) -8/Garrison (discovered 3 exits: *Fac x3) -7/Factory -6/Factory -6/Garrison (discovered 2 exits: *Fac x2) -6/Factory (discovered 2 exits: [*Low] / Gar) -6/Garrison History --------- Turn | Location | Event 10 | -11/Scrapyard | Discovered new exit (range 16) 70 | -11/Scrapyard | Entered Materials 310 | -10/Materials | Build established: Mutant 536 | -10/Materials | Lost 4 parts (1p1n2w) 597 | -10/Materials | Discovered new exit (range 8) 654 | -10/Materials | Entered Mines 671 | -10/Mines | Met a Derelict bent on vengeance 849 | -10/Mines | Learned 2 Materials zone layouts 855 | -10/Mines | Learned location of Storage (-8) 944 | -10/Mines | Build established: Scavenger-Mutant 964 | -10/Mines | Joined a pair of Derelicts in attacking an 0b10 outpost 1463 | -10/Mines | Deemed a non-threat by the Exiles lab entrance 1463 | -10/Mines | Discovered new exit (range 5) 1471 | -10/Mines | Entered Exiles 1517 | -10/Exiles | Met 8R-AWN 1547 | -10/Exiles | Met EX-HEX 1603 | -10/Exiles | Met EX-BIN 1633 | -10/Exiles | Aligned with FarCom system 1635 | -10/Exiles | Given EX-Vault access code 1692 | -10/Exiles | Opened EX-Vault 1705 | -10/Exiles | Found Longsword +1 1746 | -10/Exiles | Warned to stay clear of 0b10 Research branches 1770 | -10/Exiles | Exiles lab attacked by MAIN.C 1870 | -10/Exiles | Discovered new exit (range 14) 1896 | -10/Exiles | Left Exiles lab with Longsword +1 1896 | -10/Exiles | Entered Mines 2204 | -9/Mines | Learned location of Zion (-6) 2257 | -9/Mines | Discovered new exit (range 7) 2283 | -9/Mines | Identified exit to Materials 2305 | -9/Mines | Entered Materials 2305 | -8/Materials | Evolved 4 slots: Propulsion x1, Utility x3 2306 | -8/Materials | Identified exit to Factory 2471 | -8/Materials | Destroyed 8 combat bots 2706 | -8/Materials | Garrison activated, responded to threat 2790 | -8/Materials | Lost 7 parts (1p2n3u1w) 2795 | -8/Materials | Identified exit to Garrison 2795 | -8/Materials | Entered Garrison 2877 | -8/Garrison | Garrison Relay disabled 2899 | -8/Garrison | Triggered checkpoint 2997 | -8/Garrison | Lost 3 parts (1p1n1w) 3097 | -8/Garrison | Triggered checkpoint 3121 | -8/Garrison | Triggered checkpoint 3188 | -8/Garrison | Discovered exit to Factory (range 26) 3188 | -8/Garrison | Discovered exit to Factory (range 33) 3188 | -8/Garrison | Discovered exit to Factory (range 57) 3334 | -8/Garrison | Installed Relay Interface Framework 3371 | -8/Garrison | Garrison Relay disabled 3465 | -8/Garrison | Triggered checkpoint 3534 | -8/Garrison | Triggered checkpoint 3573 | -8/Garrison | Expanded RIF knowledge: Command Fork 3592 | -8/Garrison | Garrison Relay disabled 3679 | -8/Garrison | Triggered checkpoint 3771 | -8/Garrison | Core integrity fell below 50% 3873 | -8/Garrison | Triggered checkpoint 3992 | -8/Garrison | Build established: Commander-Mutant 4199 | -8/Garrison | System corruption reached 10% 4273 | -8/Garrison | Triggered checkpoint 4532 | -8/Garrison | Garrison Relay disabled 4553 | -8/Garrison | Triggered checkpoint 4623 | -8/Garrison | Lost 5 allies 4813 | -8/Garrison | P-60 Hacker assimilated allied Soldier 3a 4828 | -8/Garrison | P-60 Hacker assimilated allied Trooper 3e 4956 | -8/Garrison | Entered Factory 4956 | -7/Factory | Accompanied by 7 allies 4956 | -7/Factory | Evolved 2 slots: Propulsion x1, Utility x1 5139 | -7/Factory | Build established: Bothacker-Mutant 5422 | -7/Factory | Repaired Med. Storage Unit 5823 | -7/Factory | Garrison activated, responded to threat 5895 | -7/Factory | Lost 6 allies 5899 | -7/Factory | Discovered new exit (range 12) 5968 | -7/Factory | Core integrity fell below 50% 5971 | -7/Factory | Entered another Factory area 5971 | -6/Factory | Evolved 2 slots: Power x1, Utility x1 5996 | -6/Factory | Lost 9 parts (1p4n2u2w) 6024 | -6/Factory | Found Launcher Loader 6027 | -6/Factory | Found Launcher Loader 6061 | -6/Factory | Found Launcher Loader 6854 | -6/Factory | Identified exit to Garrison 6864 | -6/Factory | Entered Garrison 6920 | -6/Garrison | Triggered checkpoint 6999 | -6/Garrison | Garrison Relay disabled 7104 | -6/Garrison | Triggered checkpoint 7295 | -6/Garrison | Lost 3 parts (1p2n) 7562 | -6/Garrison | Triggered checkpoint 7599 | -6/Garrison | Garrison Relay disabled 7630 | -6/Garrison | Discovered new exit (range 15) 7651 | -6/Garrison | Expanded RIF knowledge: Watcher Feeds 7749 | -6/Garrison | Spotted B-75 Beast 7750 | -6/Garrison | Triggered checkpoint 7758 | -6/Garrison | Assimilated Beast 5a with formatsys_high 7790 | -6/Garrison | Rewired B-75 Beast 7798 | -6/Garrison | Rewired B-90 Cyclops 7962 | -6/Garrison | Triggered checkpoint 7978 | -6/Garrison | Garrison Relay disabled 8166 | -6/Garrison | Discovered new exit (range 4) 8428 | -6/Garrison | Entered Factory 8428 | -6/Factory | Accompanied by 8 allies 8533 | -6/Factory | Repaired Remote Datajack 8610 | -6/Factory | Discovered new exit (range 7) 9157 | -6/Factory | Identified exit to Garrison 9160 | -6/Factory | Build established: Commander-Mutant 9277 | -6/Factory | Entered Garrison 9277 | -6/Garrison | Accompanied by 7 allies 9350 | -6/Garrison | Garrison Relay disabled 9392 | -6/Garrison | Lost 3 allies 9402 | -6/Garrison | Garrison Relay disabled 9587 | -6/Garrison | Lost 5 parts (1p1n2u1w) 9609 | -6/Garrison | Build established: Bothacker-Mutant 9617 | -6/Garrison | Garrison Relay disabled 9649 | -6/Garrison | Core integrity fell below 50% 9653 | -6/Garrison | Triggered checkpoint 9677 | -6/Garrison | Triggered checkpoint 10145 | -6/Garrison | Core integrity fell below 20% 10178 | -6/Garrison | Lost 3 parts (1n1u1w) 10313 | -6/Garrison | Triggered checkpoint 10338 | -6/Garrison | Spotted B-75 Beast 10349 | -6/Garrison | Triggered checkpoint 10357 | -6/Garrison | Triggered checkpoint 10361 | -6/Garrison | Destroyed by G-50 Soldier with Heavy Laser Last Messages --------------- 10339_ Dropped Imp. Datajack. 10343_ Acquired VTOL Module. 10349_ Beams of light sweep through the air. An alarm sounds. 10353_ Acquired 10 matter. 10354_ System corrupted: Component data lost. 10355_ Triggered Stasis Trap. 10355_ A bubble of rippling energy engulfs the area. 10355_ Field strength at 94. 10355_ Field strength at 88. 10356_ Field strength at 82. 10357_ Beams of light sweep through the air. An alarm sounds. 10357_ Field strength at 67. 10358_ Field strength at 56. 10359_ Field strength at 45. 10360_ Field strength at 39. 10361_ VTOL Module destroyed. 10361_ Field strength at 25. Map ----- +----------------------------------------------------+ | ????????????????????????????????????????????????? | | ????????????????????????????????????????????????# | | ????????????????????????????????????????????????# | | ????????????????????????????????????????????????# | | ????????????????????????????????????????????????# | | ????????????????????????????????????????????????# | | ????????????????????????????????????????????????# | | ????????????????????????????????????????????????# | | ????????????????????????????????????????????????# | | ????????????????????????????????????#???????????# | | ???????????????????????????????????? ???????????# | | ???????????????????????????????????# #??????????# | | ???????????????????????????????????# #??????????# | | ???????????????????????????????????# #?????###### | | ???????????????????????????????????# #?????# | | ??????????????????????????????????## #?????# #### | | ??????????????????????????????????? #?????# #??# | | ?????????????????????????????????### #?????# #?## | | ????????????????????????????###### # ###???# #?# | | ????????????????????????????# # #???#*#?# | | ??????????????????########### s ## % ###### #### | | ??????????????????? % | | ???????????????????? | | ???????????????????? | | ???????????????????????# ## ## ############ | | ???????????????????????# @^## " ## ###????????? | | ?????????????????????# %" #????????? | | ?????????????????????# #????????? | | ?????????????????????#g ^ ! #????????? | | ?????????????????????#g =%[#????????? | | ?????????????????????### ##^ ^ ## =###????????? | | ???????????????????????# ##^ ^^## ############ | | ???????????????????????# # | | ???????????????????????# T | | ???????????????????????# =! # | | ???????????????????????## ## [%=###########" %=# | | ????????????????????????# ## !=%## #??# ## # | | ????????????????????????# #####=## #??# ## # # | | ????????????????????????# ????# ## #??# #### # | | ????????????????????????# ????#!! #??# #??# | | ????????????????????????# ????#### #??# #??# | | ????????????????????????? ???????# #### #### | | ??????????????????????????????????# + | | ??????????????????????????????????# +[! | | ??????????????????????????????????###### #####%! # | | ?????????????????????????????????????# #!# #?#=! # | | ?????????????????????????????????????# [%= #?# # | | ?????????????????????????????????????###== ### | | ?????????????????????????????????????#"#%####" # | | ?????????????????????????????????????# [ ##" | +----------------------------------------------------+ Best States ------------- Heat Dissipation 56 Energy Generation 35 Energy Capacity 380 Matter Stores 300 Matter Capacity 300 Sight Range 18 Terrain Scan Density 10 Armor Coverage 225 Resistance: TH 15 Weapon Shielding 33 Evasion (%) 63 Targeting Accuracy 6 Melee Accuracy 5 Target Analysis 5 Salvage Targeting 3 Relay Coupler Types 4 Relay Coupler Value 133 Item Schematics ----------------- None Robot Schematics ------------------ None Fabricated ------------ Nothing Repaired ---------- Med. Storage Unit | 16% | -7/Factory Remote Datajack | 4% | -6/Factory Studied --------- None Alien Tech Used ----------------- None Achievements -------------- Satisfying Sprinter Versatile Challenges ------------ None Game ------ Seed PitchforkChromionDiverter Manual? 0 Play Time 01:19:22 Cumulative 176.9 hours Start 2026.03.20 @ 16:18:56 End 2026.03.20 @ 17:39:23 Sessions 1 Manual Loads 0 Difficulty Rogue Special Mode None Game No. 300 Rogue 300 Adventurer 0 Explorer 0 Win Type - Total 1 Types 1/0/0/0/0/0/0/0/0/0 Lore% 56 Gallery% 56 Achievement% 39 Wizard Run 0 Options --------- Layout 1 ASCII 0 Keyboard 1 Movement Numpad Keybinds 0 Fullscreen 2 Font 24/Smallcaps Map View 50x35 Zoom Use 0% Tactical HUD 1 Map Filters NONE Filters NONE Steam 1 RUN: 076ea749-06fb-430f-addd-76a6b7d0a716